bitfinex/quotes_SOLUSD_20251226
["timestamp","ask_amount","ask_price","bid_price","bid_amount"]
[1766720262959,0.67,122.68,122.64,4.13931145]
[1766720263127,0.67,122.67,122.64,0.69]
[1766720263659,4.11931145,122.67,122.64,0.69]
[1766720263833,0.67,122.66,122.63,18.52931145]
[1766720264028,3.44931145,122.65,122.63,0.88]
[1766720264253,0.67,122.66,122.63,0.88]
[1766720264254,4.11931145,122.66,122.63,0.88]
[1766720264635,3.44931145,122.66,122.63,0.88]
[1766720265774,8.82295338,122.66,122.63,0.88]
[1766720265949,3.44931145,122.65,122.63,0.88]
[1766720266150,8.82295338,122.66,122.63,0.88]
[1766720266350,12.27226483,122.66,122.63,0.88]
[1766720268461,12.27214996,122.66,122.63,0.88]
[1766720271277,0.67,122.66,122.63,4.32931145]
[1766720272065,0.67,122.66,122.63,0.88]
[1766720272379,4.11931145,122.66,122.63,0.88]
[1766720273572,12.27217601,122.66,122.63,0.88]
[1766720273773,4.11931145,122.64,122.63,0.2]
[1766720273976,4.11931145,122.64,122.62,5.73153507]
[1766720274279,3.44931145,122.63,122.59,0.68]
[1766720274487,3.44931145,122.62,122.59,0.68]
[1766720274684,3.44931145,122.63,122.59,3.44931145]
[1766720274889,3.44931145,122.63,122.6,0.68]
[1766720275563,11.60420106,122.63,122.6,0.68]
[1766720278076,3.44931145,122.62,122.6,0.68]
[1766720279982,3.44931145,122.63,122.6,0.68]
[1766720280782,3.44931145,122.65,122.61,0.68]
[1766720280968,3.44931145,122.65,122.62,0.68]
[1766720282057,11.60293833,122.65,122.62,0.68]
[1766720283077,33.47043237,122.66,122.62,0.68]
[1766720283269,3.44931145,122.64,122.62,0.68]
[1766720283478,3.44931145,122.65,122.62,0.68]
[1766720284382,33.47043237,122.66,122.62,0.68]
[1766720284565,8.85209552,122.65,122.62,0.68]
[1766720284767,3.44931145,122.65,122.62,0.68]
[1766720287786,8.15242526,122.67,122.64,0.68]
[1766720288087,11.60005047,122.69,122.66,0.68]
[1766720288262,5.40029399,122.68,122.66,0.68]
[1766720288463,11.60005047,122.69,122.66,0.68]
[1766720289001,33.46774153,122.7,122.66,4.12931145]
[1766720289170,3.44931145,122.7,122.67,0.68]
[1766720289567,10.43767296,122.69,122.67,0.68]
[1766720291694,3.44931145,122.7,122.67,0.68]
[1766720291990,35.25157757,122.72,122.69,0.68]
[1766720291991,11.5981029,122.72,122.69,0.68]
[1766720292197,3.44931145,122.72,122.69,0.68]
[1766720292370,18.58581497,122.73,122.69,4.12931145]
[1766720292371,22.03512642,122.73,122.69,4.12931145]
[1766720292565,8.84569487,122.72,122.69,0.68]
[1766720292786,3.44931145,122.72,122.69,0.68]
[1766720293395,10.43767296,122.71,122.69,0.68]
[1766720296094,10.43767296,122.71,122.69,4.12931145]
[1766720296893,10.43767296,122.71,122.69,0.68]
[1766720297272,10.43767296,122.71,122.7,0.68]
[1766720298312,4.25200737,122.76,122.71,0.68]
[1766720298601,10.43767296,122.74,122.73,0.68]
[1766720299688,10.43767296,122.74,122.72,0.68]
[1766720304191,22.03444123,122.74,122.68,14.88]
[1766720304394,22.03444123,122.74,122.71,0.68]
[1766720305376,3.44931145,122.72,122.69,0.68]
[1766720306070,3.44931145,122.72,122.67,3.44931145]
[1766720306071,3.44931145,122.71,122.68,0.68]
[1766720306275,11.59899131,122.71,122.68,0.68]
[1766720308085,3.44931145,122.7,122.67,0.68]
[1766720308814,8.14967986,122.71,122.68,4.12931145]
[1766720309385,11.59899131,122.71,122.68,0.68]
[1766720310479,3.44931145,122.7,122.66,4.12931145]
[1766720310677,3.44931145,122.7,122.67,0.68]
[1766720311799,3.44931145,122.69,122.67,0.68]
[1766720312177,3.44931145,122.68,122.65,0.68]
[1766720312779,8.15074662,122.69,122.65,0.68]
[1766720312991,8.15074662,122.69,122.66,0.68]
[1766720313196,8.15074662,122.69,122.66,4.12931145]
[1766720313392,11.60005807,122.69,122.66,0.68]
[1766720313707,11.60005807,122.69,122.65,3.44931145]
[1766720314601,8.14995925,122.7,122.66,3.44931145]
[1766720314808,11.5992707,122.7,122.64,8.83373587]
[1766720314985,3.44931145,122.69,122.65,3.44931145]
[1766720316396,8.14995925,122.7,122.65,3.44931145]
[1766720316598,3.44931145,122.69,122.65,3.44931145]
[1766720317308,3.44931145,122.69,122.64,8.83373587]
[1766720317508,11.60004557,122.69,122.65,3.44931145]
[1766720318795,11.60004557,122.69,122.66,0.68]
[1766720320515,3.44931145,122.68,122.64,0.68]
[1766720320693,11.60004557,122.69,122.65,3.44931145]
[1766720321012,11.60004557,122.69,122.66,0.68]
[1766720321889,10.35795408,122.69,122.66,0.68]
[1766720322091,2.20721996,122.68,122.64,0.71]
[1766720322311,2.20721996,122.67,122.64,0.71]
[1766720325016,10.43767296,122.68,122.66,0.72]
[1766720326292,104.7,122.73,122.68,0.72]
[1766720326293,8.14863102,122.72,122.68,0.72]
[1766720326494,10.35585098,122.72,122.69,0.72]
[1766720326697,2.20721996,122.72,122.69,0.72]
[1766720327017,12.64489292,122.72,122.69,0.72]
[1766720327614,20.79353869,122.72,122.69,0.72]
[1766720330520,12.64489292,122.72,122.69,0.72]
[1766720331494,10.43767296,122.72,122.69,0.72]
[1766720331699,12.64489292,122.72,122.69,0.72]
[1766720333727,20.79384499,122.72,122.69,0.72]
[1766720334026,2.20721996,122.71,122.69,0.72]
[1766720334826,20.79384499,122.72,122.69,0.72]
[1766720336907,18.58662503,122.72,122.69,0.72]
[1766720337819,20.79384499,122.72,122.69,0.72]
[1766720338125,18.58662503,122.72,122.69,2.20721996]
[1766720338309,18.58662503,122.72,122.7,0.72]
[1766720338508,20.79384499,122.72,122.7,0.72]
[1766720339405,18.58662503,122.72,122.7,0.72]
[1766720339606,20.79384499,122.72,122.69,0.72]
[1766720341125,18.58662503,122.72,122.69,0.72]
[1766720341306,20.79384499,122.72,122.69,0.72]
[1766720342237,18.58662503,122.72,122.69,0.72]
[1766720342411,20.79384499,122.72,122.69,0.72]
[1766720344435,10.35671404,122.71,122.69,0.72]
[1766720346919,2.20721996,122.68,122.64,10.36079874]
[1766720347115,2.20721996,122.69,122.65,2.20721996]
[1766720349041,2.20721996,122.69,122.66,0.72]
[1766720349240,10.35810999,122.69,122.66,0.72]
[1766720349438,2.20721996,122.68,122.66,0.72]
[1766720350144,2.91721996,122.68,122.64,0.72]
[1766720350438,2.91721996,122.68,122.65,0.72]
[1766720351335,11.0687243,122.68,122.65,0.72]
[1766720351564,2.20721996,122.67,122.64,0.72]
[1766720352618,11.0687243,122.68,122.64,0.72]
[1766720353844,2.20721996,122.66,122.62,0.7]
[1766720354043,17.80721996,122.67,122.63,2.20721996]
[1766720354243,17.80721996,122.67,122.64,0.7]
[1766720355247,23.75201938,122.67,122.64,0.7]
[1766720355427,8.8712879,122.68,122.65,0.7]
[1766720355628,5.39678504,122.67,122.65,0.7]
[1766720356547,10.43767296,122.67,122.66,2.90721996]
[1766720356850,18.58846551,122.69,122.66,0.7]
[1766720357151,20.79568547,122.69,122.66,0.7]
[1766720357846,2.20721996,122.71,122.67,2.20721996]
[1766720358025,14.88,122.73,122.69,0.7]
[1766720358233,2.20721996,122.71,122.68,0.7]
[1766720358547,7.6037748,122.7,122.66,2.20721996]
[1766720358745,2.20721996,122.7,122.67,0.7]
[1766720358941,2.20721996,122.69,122.67,0.7]
[1766720359138,13.36489292,122.69,122.66,0.7]
[1766720359338,12.64489292,122.69,122.66,0.7]
[1766720360366,20.79579596,122.69,122.66,0.7]
[1766720360831,2.20721996,122.67,122.64,0.7]
[1766720365656,10.35950896,122.67,122.64,0.7]
[1766720365859,2.20721996,122.66,122.64,0.7]
[1766720368466,10.36019227,122.66,122.63,0.7]
[1766720369234,8.15297231,122.66,122.63,0.7]
[1766720371060,8.15297231,122.66,122.63,2.90721996]
[1766720371263,10.43767296,122.68,122.64,2.20721996]
[1766720371557,21.51635394,122.68,122.65,0.7]
[1766720371953,20.79635394,122.68,122.65,0.7]
[1766720372133,12.64489292,122.68,122.65,0.7]
[1766720372333,10.43767296,122.68,122.65,0.7]
[1766720373757,19.30896973,122.68,122.65,0.7]
[1766720374140,21.51618969,122.68,122.65,0.7]
[1766720375771,2.92721996,122.67,122.64,0.7]
[1766720376270,2.20721996,122.67,122.64,0.7]
[1766720381580,21.51618969,122.68,122.64,0.7]
[1766720384041,22.75845585,122.68,122.64,0.7]
[1766720385070,22.75845585,122.68,122.64,4.14948612]
[1766720385369,22.75845585,122.68,122.65,0.7]
[1766720388775,22.75845585,122.68,122.64,0.69]
[1766720388776,9.49874714,122.67,122.64,0.69]
[1766720388963,4.09948612,122.67,122.64,0.69]
[1766720389668,0.65,122.67,122.64,0.69]
[1766720390776,0.65,122.66,122.63,0.69]
[1766720390979,4.09948612,122.66,122.63,0.69]
[1766720391474,0.65,122.66,122.63,0.69]
[1766720391677,4.09948612,122.66,122.63,0.69]
[1766720392170,3.44948612,122.66,122.63,0.69]
[1766720392369,12.25185167,122.67,122.63,0.69]
[1766720392773,12.25185167,122.67,122.61,11.60502695]
[1766720392774,3.44948612,122.65,122.61,0.69]
[1766720393079,4.09948612,122.66,122.62,0.69]
[1766720393580,5.40177871,122.65,122.62,0.69]
[1766720394280,5.40177871,122.65,122.62,3.44948612]
[1766720394579,5.40177871,122.65,122.63,0.69]
[1766720397258,14.20508047,122.65,122.61,3.44948612]
[1766720397457,8.80330176,122.65,122.62,0.69]
[1766720398267,8.15284854,122.66,122.63,0.69]
[1766720398562,5.4001694,122.65,122.63,0.69]
[1766720398984,12.25233466,122.66,122.63,0.69]
[1766720399281,5.40017462,122.65,122.63,0.69]
[1766720401785,23.03212282,122.67,122.64,0.69]
[1766720401986,5.40041469,122.66,122.64,0.69]
[1766720402560,8.80084371,122.69,122.65,3.44948612]
[1766720402760,19.23851667,122.69,122.66,3.44948612]
[1766720403082,0.65,122.71,122.68,3.44948612]
[1766720403278,19.2369906,122.71,122.68,3.44948612]
[1766720405189,19.2369906,122.71,122.65,8.15328169]
[1766720405386,0.65,122.7,122.65,8.15328169]
[1766720405581,0.65,122.69,122.64,23.03369083]
[1766720405781,0.65,122.69,122.65,3.44948612]
[1766720405972,0.65,122.68,122.65,3.44948612]
[1766720406786,0.65,122.68,122.64,3.44948612]
[1766720408790,0.65,122.67,122.64,3.44948612]
[1766720409367,0.65,122.66,122.62,3.44948612]
[1766720409968,0.65,122.66,122.63,3.44948612]
[1766720411606,0.65,122.66,122.61,23.03576061]
[1766720411787,0.65,122.66,122.63,3.44948612]
[1766720415297,18.5891796,122.68,122.64,3.44948612]
[1766720415497,5.40083462,122.67,122.65,3.44948612]
[1766720416179,19.2691796,122.68,122.65,3.44948612]
[1766720416392,5.40088888,122.67,122.65,3.44948612]
[1766720416593,6.08088888,122.67,122.65,3.44948612]
[1766720416779,0.68,122.67,122.65,3.44948612]
[1766720417184,19.2691796,122.68,122.65,3.44948612]
[1766720417392,5.40085741,122.67,122.65,3.44948612]
[1766720419908,21.63106282,122.7,122.67,3.44948612]
[1766720419909,10.43767296,122.7,122.67,3.44948612]
[1766720420073,8.82973578,122.71,122.68,3.44948612]
[1766720420274,19.26740874,122.71,122.68,3.44948612]
[1766720420486,0.68,122.7,122.68,3.44948612]
[1766720423684,0.68,122.7,122.65,8.15304601]
[1766720423897,0.68,122.7,122.68,3.44948612]
[1766720424103,19.26740874,122.71,122.68,3.44948612]
[1766720424506,0.68,122.7,122.68,3.44948612]
[1766720425486,0.68,122.7,122.65,8.15328169]
[1766720425692,0.68,122.68,122.64,3.44948612]
[1766720426178,4.12948612,122.68,122.64,3.44948612]
[1766720426697,0.68,122.68,122.64,3.44948612]
[1766720429207,0.68,122.67,122.64,3.44948612]
[1766720429385,0.68,122.67,122.63,3.44948612]
[1766720431286,0.68,122.67,122.64,3.44948612]
[1766720431685,0.68,122.67,122.63,3.44948612]
[1766720431686,0.68,122.66,122.63,3.44948612]
[1766720435213,11.60218657,122.66,122.62,3.44948612]
[1766720435394,0.68,122.65,122.61,3.44948612]
[1766720437118,0.68,122.64,122.61,3.44948612]
[1766720437419,0.68,122.63,122.6,18.32948612]
[1766720437616,0.68,122.63,122.6,3.44948612]
[1766720437908,0.68,122.63,122.61,3.44948612]
[1766720441888,11.11767296,122.63,122.59,8.15705602]
[1766720442094,11.11767296,122.63,122.6,3.44948612]
[1766720444713,11.11767296,122.63,122.59,8.15705602]
[1766720444914,11.11767296,122.63,122.61,3.44948612]
[1766720445523,0.68,122.63,122.61,3.44948612]
[1766720446025,0.68,122.63,122.61,2.20869712]
[1766720448821,0.69,122.64,122.61,2.20869712]
[1766720449519,0.69,122.64,122.62,2.20869712]
[1766720449919,0.69,122.64,122.61,2.20869712]
[1766720462836,0.69,122.63,122.59,8.1572722]
[1766720463018,0.69,122.63,122.6,2.20869712]
[1766720464641,0.69,122.63,122.59,8.1572722]
[1766720464836,0.69,122.62,122.59,2.20869712]
[1766720465040,0.69,122.63,122.6,2.20869712]
[1766720472544,0.69,122.63,122.59,8.15718494]
[1766720472748,0.69,122.63,122.6,2.20869712]
[1766720477556,0.72,122.64,122.62,2.20869712]
[1766720478660,0.72,122.64,122.61,2.20869712]
[1766720479836,0.72,122.64,122.62,2.20869712]
[1766720481639,0.72,122.64,122.61,2.20869712]
[1766720482753,0.72,122.64,122.6,2.20869712]
[1766720484174,0.72,122.64,122.6,10.36523949]
[1766720484659,0.72,122.64,122.61,2.20869712]
[1766720492875,18.59101403,122.65,122.62,2.20869712]
[1766720493041,19.31101403,122.65,122.62,2.20869712]
[1766720493244,11.15767296,122.65,122.62,2.20869712]
[1766720494274,19.31098558,122.65,122.62,2.20869712]
[1766720494569,0.72,122.64,122.62,2.20869712]
[1766720495367,18.59098558,122.65,122.62,2.20869712]
[1766720495569,19.31098558,122.65,122.62,2.20869712]
[1766720498673,18.59098558,122.65,122.62,2.20869712]
[1766720498973,0.72,122.64,122.62,2.20869712]
[1766720501181,8.15421383,122.64,122.61,2.20869712]
[1766720501473,0.72,122.63,122.6,2.20869712]
[1766720501697,0.72,122.63,122.59,14.88]
[1766720501869,0.72,122.63,122.6,2.20869712]
[1766720504583,0.72,122.63,122.59,23.03722104]
[1766720504752,0.72,122.63,122.6,2.20869712]
[1766720505350,8.15466493,122.63,122.59,17.08869712]
[1766720505546,0.68,122.62,122.59,17.08869712]
[1766720506584,0.68,122.61,122.57,25.26714307]
[1766720506752,0.68,122.6,122.57,17.10869712]
[1766720508070,0.68,122.6,122.57,18.35309813]
[1766720509884,0.68,122.6,122.58,3.45309813]
[1766720511281,0.68,122.6,122.57,3.45309813]
[1766720515586,0.68,122.61,122.58,3.45309813]
[1766720516710,10.43767296,122.62,122.6,3.45309813]
[1766720516990,11.11767296,122.62,122.6,3.45309813]
[1766720517192,11.11767296,122.62,122.59,3.45309813]
[1766720517486,0.68,122.61,122.59,3.45309813]
[1766720521803,0.68,122.61,122.57,8.1583158]
[1766720521976,0.68,122.61,122.59,3.45309813]
[1766720525001,0.68,122.61,122.57,8.1583158]
[1766720525501,3.45309813,122.61,122.57,8.1583158]
[1766720525807,0.68,122.6,122.57,11.61141393]
[1766720527395,0.68,122.61,122.58,3.45309813]
[1766720527704,0.68,122.61,122.59,3.45309813]
[1766720528001,0.68,122.61,122.58,3.45309813]
[1766720532783,0.68,122.61,122.59,3.45309813]
[1766720541425,0.68,122.61,122.58,3.45309813]
[1766720543430,22.04605368,122.62,122.58,3.45309813]
[1766720543599,22.69605368,122.62,122.58,3.45309813]
[1766720544233,0.65,122.61,122.58,3.45309813]
[1766720551136,8.15621801,122.61,122.56,23.25925502]
[1766720551435,0.65,122.6,122.58,3.45309813]
[1766720551628,10.43767296,122.62,122.59,3.45309813]
[1766720551808,0.65,122.62,122.59,3.45309813]
[1766720553038,10.43767296,122.64,122.6,3.45309813]
[1766720553336,0.65,122.66,122.63,3.45309813]
[1766720554431,8.15272998,122.66,122.63,3.45309813]
[1766720554629,0.65,122.65,122.63,3.45309813]
[1766720558330,0.65,122.67,122.64,3.45309813]
[1766720562448,0.67,122.65,122.62,26.50811526]
[1766720563423,0.67,122.65,122.63,3.45309813]
[1766720563820,0.67,122.65,122.64,3.45309813]
[1766720564743,38.96643388,122.69,122.64,3.45309813]
[1766720564927,0.67,122.67,122.64,3.45309813]
[1766720567927,0.67,122.67,122.64,2.20743523]
[1766720574543,0.67,122.67,122.65,2.20743523]
[1766720576657,10.43767296,122.69,122.66,2.20743523]
[1766720576861,0.67,122.7,122.68,2.20743523]
[1766720577062,0.67,122.7,122.67,2.20743523]
[1766720577260,0.67,122.69,122.66,17.08743523]
[1766720577844,0.67,122.68,122.66,17.08743523]
[1766720578354,0.67,122.68,122.66,2.20743523]
[1766720580571,0.67,122.7,122.67,2.20743523]
[1766720582564,10.43767296,122.71,122.68,2.20743523]
[1766720582752,11.10767296,122.71,122.68,2.20743523]
[1766720582951,10.43767296,122.71,122.68,2.20743523]
[1766720583146,0.67,122.7,122.68,2.20743523]
[1766720583353,0.67,122.7,122.69,2.20743523]
[1766720583767,0.67,122.7,122.68,2.20743523]
[1766720585277,0.67,122.7,122.69,2.20743523]
[1766720585657,0.67,122.7,122.66,8.15261699]
[1766720585851,0.67,122.7,122.69,2.20743523]
[1766720586173,0.67,122.7,122.68,2.20743523]
[1766720587876,0.67,122.72,122.69,2.20743523]
[1766720588175,0.67,122.73,122.71,2.20743523]
[1766720588374,2.20743523,122.75,122.7,14.88]
[1766720588576,0.67,122.74,122.71,2.20743523]
[1766720590749,2.20743523,122.72,122.68,2.20743523]
[1766720590949,0.67,122.71,122.68,2.20743523]
[1766720591546,2.87743523,122.72,122.68,2.20743523]
[1766720591969,2.87743523,122.72,122.68,10.35862183]
[1766720592372,0.67,122.72,122.68,10.35862183]
[1766720592562,0.67,122.71,122.68,10.35862183]
[1766720593770,0.67,122.71,122.66,45.69834641]
[1766720593771,0.67,122.72,122.69,2.20743523]
[1766720594180,0.67,122.72,122.7,2.20743523]
[1766720596978,0.67,122.72,122.67,28.52807891]
[1766720596979,0.67,122.72,122.68,10.35872313]
[1766720597874,0.67,122.72,122.68,8.1512879]
[1766720598084,0.67,122.72,122.68,10.35872313]
[1766720599968,2.87743523,122.72,122.68,10.35872313]
[1766720601283,0.67,122.72,122.68,10.35872313]
[1766720601468,2.87743523,122.72,122.68,10.35872313]
[1766720602583,0.72,122.71,122.68,10.35872313]
[1766720603283,2.20743523,122.72,122.68,10.35872313]
[1766720603482,2.92743523,122.72,122.68,10.35872313]
[1766720607391,2.20743523,122.72,122.67,8.14819793]
[1766720607587,2.20743523,122.7,122.65,12.64510819]
[1766720607791,2.92743523,122.69,122.65,35.67800462]
[1766720607966,2.92743523,122.69,122.65,23.03289643]
[1766720608166,2.92743523,122.68,122.65,23.03289643]
[1766720608477,2.92743523,122.66,122.61,20.38898153]
[1766720608687,2.92743523,122.66,122.62,23.03504023]
[1766720608882,2.20743523,122.66,122.63,24.4648318]
[1766720609080,2.20743523,122.66,122.57,46.91794762]
[1766720609081,2.92743523,122.64,122.59,20.39225656]
[1766720609264,2.92743523,122.64,122.6,25.24404208]
[1766720609472,0.72,122.64,122.6,25.24404208]
[1766720609667,2.92743523,122.64,122.6,25.24404208]
[1766720610500,0.7,122.63,122.6,23.03660685]
[1766720610675,0.7,122.63,122.6,25.24404208]
[1766720610992,0.7,122.64,122.6,25.24404208]
[1766720611192,2.90743523,122.66,122.62,2.20743523]
[1766720611582,0.7,122.65,122.62,2.20743523]
[1766720612297,0.7,122.65,122.62,10.3624147]
[1766720614897,0.7,122.65,122.61,10.36337683]
[1766720616291,2.90743523,122.65,122.61,8.1559416]
[1766720616591,2.90743523,122.65,122.61,10.36337683]
[1766720618300,0.7,122.65,122.61,10.36337683]
[1766720620200,0.7,122.65,122.61,8.1559416]
[1766720620398,0.7,122.65,122.61,10.36337683]
[1766720623210,0.7,122.65,122.61,18.51555202]
[1766720624507,0.7,122.65,122.61,10.36337683]
[1766720625902,0.72,122.64,122.61,10.36337683]
[1766720627004,0.72,122.64,122.61,8.1559416]
[1766720627205,0.72,122.63,122.61,8.1559416]
[1766720628278,0.72,122.62,122.61,8.1559416]
[1766720628708,0.72,122.63,122.61,8.1559416]
[1766720630080,0.72,122.64,122.61,11.60682531]
[1766720636304,4.17088371,122.65,122.61,31.99667931]
[1766720636692,0.72,122.65,122.61,31.99667931]
[1766720637195,0.72,122.65,122.61,42.43435227]
[1766720638724,0.72,122.65,122.62,3.45088371]
[1766720638910,0.72,122.66,122.62,3.45088371]
[1766720639090,3.45088371,122.66,122.62,3.45088371]
[1766720639289,0.72,122.65,122.62,3.45088371]
[1766720640187,4.17088371,122.66,122.63,8.15461143]
[1766720640483,0.72,122.66,122.63,11.60549514]
[1766720640713,3.45088371,122.67,122.64,15.58]
[1766720642316,3.45088371,122.68,122.65,8.15328169]
[1766720642699,0.72,122.67,122.65,8.15328169]
[1766720644022,4.17088371,122.69,122.66,0.7]
[1766720644347,0.72,122.68,122.65,8.85328169]
[1766720648393,0.72,122.68,122.65,11.6041654]
[1766720648599,4.17088371,122.69,122.66,0.7]
[1766720649298,3.45088371,122.71,122.67,15.58]
[1766720649506,0.72,122.7,122.67,15.58]
[1766720650707,0.72,122.7,122.67,19.03088371]
[1766720653596,0.72,122.7,122.67,18.33088371]
[1766720655512,0.72,122.7,122.67,19.00088371]
[1766720656428,0.72,122.7,122.67,23.70192709]
[1766720656735,0.72,122.7,122.67,23.03192709]
[1766720658632,3.45088371,122.7,122.67,23.03192709]
[1766720658822,0.72,122.69,122.67,23.03192709]
[1766720660030,0.72,122.71,122.67,27.1528108]
[1766720660239,0.72,122.7,122.67,27.1528108]
[1766720660403,0.72,122.7,122.67,23.70192709]
[1766720660603,0.72,122.7,122.67,27.1528108]
[1766720662905,0.72,122.72,122.69,4.12088371]
[1766720664705,0.72,122.72,122.68,11.60174383]
[1766720664913,0.72,122.72,122.68,12.27174383]
[1766720665137,0.72,122.71,122.68,12.27174383]
[1766720666336,4.17088371,122.71,122.68,8.82086012]
[1766720666711,0.72,122.71,122.69,11.60140055]
[1766720667022,0.72,122.71,122.69,8.15051684]
[1766720667633,0.72,122.71,122.69,11.60140055]
[1766720667834,0.72,122.71,122.69,26.48140055]
[1766720669930,0.72,122.71,122.69,11.60140055]
[1766720670129,0.72,122.71,122.69,26.48140055]
[1766720671533,3.45088371,122.73,122.69,26.48140055]
[1766720671733,4.17088371,122.74,122.71,0.67]
[1766720672532,3.45088371,122.74,122.71,0.67]
[1766720672831,0.72,122.73,122.7,8.81992365]
[1766720673017,0.72,122.73,122.7,8.14992365]
[1766720674833,0.72,122.72,122.7,8.14992365]
[1766720680933,3.45088371,122.73,122.71,0.67]
[1766720681125,4.17088371,122.73,122.71,0.67]
[1766720682035,4.17088371,122.73,122.7,8.14992365]
[1766720682233,3.45088371,122.73,122.71,0.69]
[1766720683338,11.15767296,122.75,122.72,0.69]
[1766720683541,14.60855667,122.75,122.72,0.69]
[1766720684431,13.88855667,122.75,122.72,0.69]
[1766720684627,0.67,122.74,122.71,8.81914596]
[1766720685739,4.12088371,122.74,122.71,8.81914596]
[1766720688337,0.67,122.74,122.71,8.81914596]
[1766720688547,4.12088371,122.74,122.71,8.81914596]
[1766720690647,3.45088371,122.74,122.72,0.67]
[1766720691955,2.20499785,122.74,122.72,0.67]
[1766720692552,2.87499785,122.74,122.72,0.67]
[1766720692846,2.87499785,122.74,122.71,8.81914596]
[1766720693039,0.67,122.74,122.71,8.81914596]
[1766720694229,0.67,122.74,122.72,8.14856558]
[1766720694425,10.43767296,122.76,122.72,8.14856558]
[1766720694736,2.20499785,122.76,122.73,0.67]
[1766720694938,2.87499785,122.76,122.73,0.67]
[1766720703856,0.67,122.76,122.73,0.67]
[1766720705057,2.87499785,122.76,122.73,0.67]
[1766720708738,2.20499785,122.75,122.73,0.67]
[1766720709747,8.81598691,122.76,122.73,0.67]
[1766720709953,11.02098476,122.76,122.73,0.67]
[1766720711040,0.67,122.77,122.74,2.87499785]
[1766720711257,2.87499785,122.77,122.74,0.67]
[1766720711448,2.20499785,122.75,122.72,23.02858315]
[1766720711646,0.67,122.74,122.72,23.69858315]
[1766720712141,0.67,122.76,122.73,2.20499785]
[1766720712565,0.67,122.76,122.73,2.87499785]
[1766720715141,0.67,122.75,122.72,14.88]
[1766720715569,0.67,122.75,122.72,25.2334543]
[1766720715869,0.67,122.75,122.72,25.9534543]
[1766720716946,0.67,122.75,122.72,8.86845645]
[1766720717169,0.67,122.75,122.72,25.9534543]
[1766720718072,0.2,122.79,122.74,2.20499785]
[1766720718242,0.2,122.8,122.78,2.92499785]
[1766720718440,0.2,122.81,122.79,2.20499785]
[1766720718667,0.2,122.81,122.78,17.80499785]
[1766720718867,2.40499785,122.81,122.77,17.08499785]
[1766720719057,2.40499785,122.81,122.77,28.35179621]
[1766720720148,0.67,122.8,122.77,28.35179621]
[1766720720352,0.2,122.81,122.78,2.92499785]
[1766720720552,0.87,122.81,122.78,2.92499785]
[1766720721068,3.07499785,122.81,122.78,0.72]
[1766720721255,0.67,122.8,122.77,28.35179621]
[1766720721460,0.67,122.8,122.78,2.20499785]
[1766720722353,0.67,122.8,122.78,10.34958034]
[1766720722562,0.2,122.81,122.79,0.72]
[1766720722876,0.87,122.81,122.78,11.06958034]
[1766720723946,0.87,122.81,122.78,8.86458249]
[1766720724153,0.87,122.81,122.78,11.06958034]
[1766720725373,0.87,122.81,122.79,2.20499785]
[1766720725569,0.87,122.81,122.79,2.92499785]
[1766720728678,0.87,122.81,122.8,2.20499785]
[1766720731177,0.2,122.81,122.8,2.92499785]
[1766720731363,0.2,122.81,122.8,2.20499785]
[1766720732555,0.2,122.83,122.81,0.72]
[1766720732785,0.2,122.83,122.82,2.20499785]
[1766720733360,0.87,122.84,122.82,2.20499785]
[1766720734408,0.2,122.85,122.83,2.92499785]
[1766720734693,0.2,122.85,122.83,15.6]
[1766720734853,0.2,122.85,122.84,2.20499785]
[1766720735853,0.87,122.86,122.84,2.20499785]
[1766720737179,0.87,122.86,122.85,2.20499785]
[1766720737384,0.2,122.86,122.85,2.92499785]
[1766720737582,0.2,122.87,122.85,2.92499785]
[1766720739411,0.2,122.89,122.87,0.72]
[1766720739683,0.2,122.89,122.87,2.92499785]